[Event "Titled Tuesday Blitz December 27 Early 2022"]
[White "Korchmar, Vasiliy"]
[Black "Sadovsky, Artem"]
[WhiteFideId "24131750"]
[BlackFideId "4155840"]
[WhiteElo "2438"]
[BlackElo "2276"]
[Result "1-0"]
[Round "03"]
[TimeControl "180+2"]
[Date "2022.12.27"]
[WhiteClock "0:00:05"]
[BlackClock "0:01:04"]

1. e4 {[%clk 0:02:57]}  g6 {[%clk 0:02:58]} 2. d4 {[%clk 0:02:57]}  Bg7 {[%clk 0:02:59]} 3. Nc3 {[%clk 0:02:58]}  c6 {[%clk 0:02:59]} 4. Be3 {[%clk 0:02:57]}  d5 {[%clk 0:02:59]} 5. e5 {[%clk 0:02:58]}  h5 {[%clk 0:02:59]} 6. Qd2 {[%clk 0:02:58]}  Nh6 {[%clk 0:02:59]} 7. O-O-O {[%clk 0:02:58]}  Nf5 {[%clk 0:02:59]} 8. Bf4 {[%clk 0:02:58]}  b5 {[%clk 0:02:58]} 9. Nf3 {[%clk 0:02:50]}  a5 {[%clk 0:02:58]} 10. Bd3 {[%clk 0:02:44]}  a4 {[%clk 0:02:54]} 11. h3 {[%clk 0:02:44]}  b4 {[%clk 0:02:51]} 12. Ne2 {[%clk 0:02:44]}  b3 {[%clk 0:02:51]} 13. cxb3 {[%clk 0:02:24]}  axb3 {[%clk 0:02:51]} 14. a3 {[%clk 0:02:25]}  c5 {[%clk 0:02:39]} 15. dxc5 {[%clk 0:02:16]}  Qa5 {[%clk 0:02:37]} 16. g4 {[%clk 0:02:10]}  hxg4 {[%clk 0:02:13]} 17. hxg4 {[%clk 0:02:11]}  Nh6 {[%clk 0:02:14]} 18. Qxa5 {[%clk 0:01:28]}  Rxa5 {[%clk 0:02:12]} 19. e6 {[%clk 0:01:28]}  Rxc5+ {[%clk 0:01:56]} 20. Kb1 {[%clk 0:01:28]}  Nc6 {[%clk 0:01:48]} 21. exf7+ {[%clk 0:01:26]}  Nxf7 {[%clk 0:01:47]} 22. Be3 {[%clk 0:01:05]}  d4 {[%clk 0:01:37]} 23. Nfxd4 {[%clk 0:00:59]}  Bxg4 {[%clk 0:01:33]} 24. Nxc6 {[%clk 0:00:58]}  Rxc6 {[%clk 0:01:33]} 25. Rxh8+ {[%clk 0:00:57]}  Bxh8 {[%clk 0:01:30]} 26. Bb5 {[%clk 0:00:58]}  Bxe2 {[%clk 0:01:12]} 27. Bxc6+ {[%clk 0:00:55]}  Kf8 {[%clk 0:01:12]} 28. Rd2 {[%clk 0:00:50]}  Bc4 {[%clk 0:01:03]} 29. Bd5 {[%clk 0:00:49]}  Nd6 {[%clk 0:01:04]} 30. Bxc4 {[%clk 0:00:37]}  Nxc4 {[%clk 0:01:05]} 31. Rd8+ {[%clk 0:00:37]}  Kg7 {[%clk 0:01:06]} 32. Bd4+ {[%clk 0:00:33]}  e5 {[%clk 0:01:06]} 33. Bc3 {[%clk 0:00:29]}  Kh7 {[%clk 0:01:07]} 34. a4 {[%clk 0:00:26]}  Bf6 {[%clk 0:01:05]} 35. Rd7+ {[%clk 0:00:26]}  Kh6 {[%clk 0:01:04]} 36. a5 {[%clk 0:00:27]}  e4 {[%clk 0:01:00]} 37. Bxf6 {[%clk 0:00:24]}  Nxa5 {[%clk 0:01:00]} 38. Rc7 {[%clk 0:00:18]}  Kh5 {[%clk 0:00:57]} 39. Bc3 {[%clk 0:00:18]}  Kg4 {[%clk 0:00:57]} 40. Bxa5 {[%clk 0:00:18]}  Kf3 {[%clk 0:00:58]} 41. Bb6 {[%clk 0:00:17]}  g5 {[%clk 0:00:57]} 42. Be3 {[%clk 0:00:16]}  g4 {[%clk 0:00:56]} 43. Rg7 {[%clk 0:00:16]}  Ke2 {[%clk 0:00:54]} 44. Rxg4 {[%clk 0:00:14]}  Kd1 {[%clk 0:00:55]} 45. Rxe4 {[%clk 0:00:14]}  Ke2 {[%clk 0:00:56]} 46. f4 {[%clk 0:00:13]}  Kd1 {[%clk 0:00:57]} 47. f5 {[%clk 0:00:13]}  Ke2 {[%clk 0:00:58]} 48. f6 {[%clk 0:00:13]}  Kd3 {[%clk 0:00:58]} 49. Re7 {[%clk 0:00:12]}  Ke2 {[%clk 0:00:59]} 50. Kc1 {[%clk 0:00:12]}  Kd3 {[%clk 0:01:00]} 51. Kd1 {[%clk 0:00:11]}  Kc4 {[%clk 0:00:59]} 52. Kd2 {[%clk 0:00:11]}  Kd5 {[%clk 0:00:59]} 53. Kd3 {[%clk 0:00:11]}  Kc6 {[%clk 0:01:00]} 54. Kc3 {[%clk 0:00:11]}  Kd6 {[%clk 0:01:01]} 55. Kxb3 {[%clk 0:00:12]}  Kc6 {[%clk 0:01:02]} 56. Kc4 {[%clk 0:00:12]}  Kd6 {[%clk 0:01:03]} 57. b4 {[%clk 0:00:12]}  Kc6 {[%clk 0:01:04]} 58. b5+ {[%clk 0:00:12]}  Kd6 {[%clk 0:01:05]} 59. b6 {[%clk 0:00:11]}  Kc6 {[%clk 0:01:05]} 60. b7 {[%clk 0:00:12]}  Kd6 {[%clk 0:01:06]} 61. b8=Q+ {[%clk 0:00:11]}  Kc6 {[%clk 0:01:07]} 62. Qb1 {[%clk 0:00:09]}  Kd6 {[%clk 0:01:07]} 63. Re4 {[%clk 0:00:09]}  Kc6 {[%clk 0:01:08]} 64. f7 {[%clk 0:00:08]}  Kd7 {[%clk 0:01:09]} 65. f8=Q {[%clk 0:00:08]}  Kc6 {[%clk 0:01:10]} 66. Qf6+ {[%clk 0:00:07]}  Kc7 {[%clk 0:01:10]} 67. Rg4 {[%clk 0:00:07]}  Kd7 {[%clk 0:01:09]} 68. Qh1 {[%clk 0:00:06]}  Kc8 {[%clk 0:01:04]} 69. Rg7 {[%clk 0:00:05]} 1-0


[Site "https://www.chess.com"]

[Event "Titled Tuesday Blitz December 27 Early 2022"]
[White "Koutlas, Nikolaos"]
[Black "Rustemov, Alexander"]
[WhiteFideId "25827138"]
[BlackFideId "4119002"]
[WhiteElo "2341"]
[BlackElo "2525"]
[Result "0-1"]
[Round "03"]
[TimeControl "180+2"]
[Date "2022.12.27"]
[WhiteClock "0:00:01"]
[BlackClock "0:00:23"]

1. Nf3 {[%clk 0:02:52]}  d5 {[%clk 0:02:59]} 2. g3 {[%clk 0:02:51]}  Nf6 {[%clk 0:02:59]} 3. Bg2 {[%clk 0:02:51]}  Bf5 {[%clk 0:03:00]} 4. O-O {[%clk 0:02:50]}  e6 {[%clk 0:03:00]} 5. d3 {[%clk 0:02:51]}  c6 {[%clk 0:02:57]} 6. Nbd2 {[%clk 0:02:51]}  h6 {[%clk 0:02:56]} 7. Ne5 {[%clk 0:02:28]}  Be7 {[%clk 0:02:53]} 8. e4 {[%clk 0:02:21]}  Bh7 {[%clk 0:02:52]} 9. Qe2 {[%clk 0:02:04]}  O-O {[%clk 0:02:52]} 10. c3 {[%clk 0:02:02]}  Nbd7 {[%clk 0:02:46]} 11. Nxd7 {[%clk 0:01:58]}  Qxd7 {[%clk 0:02:40]} 12. e5 {[%clk 0:01:57]}  Ne8 {[%clk 0:02:39]} 13. Nf3 {[%clk 0:01:49]}  Nc7 {[%clk 0:02:38]} 14. h4 {[%clk 0:01:45]}  c5 {[%clk 0:02:32]} 15. Nh2 {[%clk 0:01:33]}  b5 {[%clk 0:02:30]} 16. Ng4 {[%clk 0:01:28]}  c4 {[%clk 0:02:30]} 17. dxc4 {[%clk 0:01:26]}  bxc4 {[%clk 0:02:28]} 18. Rd1 {[%clk 0:01:26]}  Rab8 {[%clk 0:02:27]} 19. Qxc4 {[%clk 0:01:19]}  Rfc8 {[%clk 0:01:56]} 20. Qf4 {[%clk 0:01:07]}  Qb5 {[%clk 0:01:46]} 21. Ne3 {[%clk 0:00:50]}  Na6 {[%clk 0:01:45]} 22. Qg4 {[%clk 0:00:44]}  Nc5 {[%clk 0:01:41]} 23. h5 {[%clk 0:00:34]}  Qa4 {[%clk 0:01:37]} 24. c4 {[%clk 0:00:28]}  dxc4 {[%clk 0:01:31]} 25. Rd4 {[%clk 0:00:22]}  Nb3 {[%clk 0:01:27]} 26. axb3 {[%clk 0:00:12]}  Qxa1 {[%clk 0:01:26]} 27. Rxc4 {[%clk 0:00:09]}  Bf5 {[%clk 0:01:11]} 28. Nxf5 {[%clk 0:00:08]}  exf5 {[%clk 0:01:11]} 29. Qd4 {[%clk 0:00:04]}  Rd8 {[%clk 0:01:04]} 30. Qf4 {[%clk 0:00:03]}  Bg5 {[%clk 0:01:03]} 31. Qxf5 {[%clk 0:00:03]}  Bxc1 {[%clk 0:01:02]} 32. Be4 {[%clk 0:00:03]}  Bg5+ {[%clk 0:00:42]} 33. Kg2 {[%clk 0:00:03]}  Qa5 {[%clk 0:00:38]} 34. Qh7+ {[%clk 0:00:03]}  Kf8 {[%clk 0:00:38]} 35. e6 {[%clk 0:00:04]}  Qe5 {[%clk 0:00:30]} 36. exf7 {[%clk 0:00:03]}  Kxf7 {[%clk 0:00:29]} 37. Rc6 {[%clk 0:00:03]}  Rb6 {[%clk 0:00:25]} 38. Qg6+ {[%clk 0:00:03]}  Ke7 {[%clk 0:00:24]} 39. Rxb6 {[%clk 0:00:01]}  axb6 {[%clk 0:00:24]} 40. f3 {[%clk 0:00:02]}  Bf6 {[%clk 0:00:23]} 41. Kh3 {[%clk 0:00:01]}  Qe6+ {[%clk 0:00:23]} 0-1


[Site "https://www.chess.com"]

[Event "Titled Tuesday Blitz December 27 Early 2022"]
[White "Kovacevic, Radmila"]
[Black "Rosenberg, Evan S"]
[WhiteFideId "933171"]
[BlackFideId "2019299"]
[WhiteElo "2106"]
[BlackElo "1956"]
[Result "1/2-1/2"]
[Round "03"]
[TimeControl "180+2"]
[Date "2022.12.27"]
[WhiteClock "0:00:11"]
[BlackClock "0:00:02"]

1. e4 {[%clk 0:02:57]}  e5 {[%clk 0:03:00]} 2. d4 {[%clk 0:02:56]}  exd4 {[%clk 0:02:58]} 3. c3 {[%clk 0:02:57]}  Qe7 {[%clk 0:02:56]} 4. Bd3 {[%clk 0:02:56]}  d5 {[%clk 0:02:56]} 5. Qe2 {[%clk 0:02:51]}  dxe4 {[%clk 0:02:52]} 6. Qxe4 {[%clk 0:02:50]}  Nc6 {[%clk 0:02:40]} 7. Nf3 {[%clk 0:02:47]}  dxc3 {[%clk 0:02:26]} 8. O-O {[%clk 0:02:46]}  Qxe4 {[%clk 0:02:15]} 9. Bxe4 {[%clk 0:02:45]}  cxb2 {[%clk 0:02:11]} 10. Bxb2 {[%clk 0:02:40]}  Bd7 {[%clk 0:01:58]} 11. Ng5 {[%clk 0:02:31]}  h6 {[%clk 0:01:46]} 12. Re1 {[%clk 0:02:19]}  Nge7 {[%clk 0:01:39]} 13. Nf3 {[%clk 0:01:57]}  O-O-O {[%clk 0:01:38]} 14. Nc3 {[%clk 0:01:55]}  Bf5 {[%clk 0:01:25]} 15. Nb5 {[%clk 0:01:45]}  Bxe4 {[%clk 0:01:08]} 16. Rxe4 {[%clk 0:01:46]}  a6 {[%clk 0:01:09]} 17. Nbd4 {[%clk 0:01:40]}  Nxd4 {[%clk 0:01:01]} 18. Nxd4 {[%clk 0:01:41]}  Rg8 {[%clk 0:00:45]} 19. Rc1 {[%clk 0:01:39]}  Nd5 {[%clk 0:00:36]} 20. g3 {[%clk 0:01:34]}  g6 {[%clk 0:00:28]} 21. Nb3 {[%clk 0:01:27]}  Bg7 {[%clk 0:00:20]} 22. Ba3 {[%clk 0:01:23]}  Rge8 {[%clk 0:00:18]} 23. Rec4 {[%clk 0:01:22]}  c6 {[%clk 0:00:18]} 24. Na5 {[%clk 0:01:17]}  Re2 {[%clk 0:00:17]} 25. Nxc6 {[%clk 0:00:47]}  bxc6 {[%clk 0:00:17]} 26. Rxc6+ {[%clk 0:00:47]}  Kb7 {[%clk 0:00:18]} 27. R6c4 {[%clk 0:00:26]}  Rxa2 {[%clk 0:00:14]} 28. Rb1+ {[%clk 0:00:26]}  Nb6 {[%clk 0:00:13]} 29. Bc5 {[%clk 0:00:26]}  Rb2 {[%clk 0:00:09]} 30. Rxb2 {[%clk 0:00:21]}  Bxb2 {[%clk 0:00:10]} 31. Rb4 {[%clk 0:00:22]}  Kc6 {[%clk 0:00:05]} 32. Bxb6 {[%clk 0:00:21]}  Rd1+ {[%clk 0:00:05]} 33. Kg2 {[%clk 0:00:20]}  Ba3 {[%clk 0:00:04]} 34. Rb3 {[%clk 0:00:20]}  Bd6 {[%clk 0:00:02]} 35. Be3 {[%clk 0:00:19]}  Rd5 {[%clk 0:00:01]} 36. Rb6+ {[%clk 0:00:19]}  Kd7 {[%clk 0:00:02]} 37. Rxa6 {[%clk 0:00:20]}  Bc5 {[%clk 0:00:01]} 38. Ra5 {[%clk 0:00:18]}  Kc6 {[%clk 0:00:01]} 39. Bxh6 {[%clk 0:00:16]}  Bb6 {[%clk 0:00:01]} 40. Rxd5 {[%clk 0:00:15]}  Kxd5 {[%clk 0:00:01]} 41. Be3 {[%clk 0:00:14]}  Bc7 {[%clk 0:00:01]} 42. Kf3 {[%clk 0:00:13]}  Ke6 {[%clk 0:00:02]} 43. Kg4 {[%clk 0:00:13]}  Bd8 {[%clk 0:00:03]} 44. h4 {[%clk 0:00:13]}  Bf6 {[%clk 0:00:03]} 45. Bg5 {[%clk 0:00:13]}  Bg7 {[%clk 0:00:04]} 46. f3 {[%clk 0:00:11]}  f5+ {[%clk 0:00:03]} 47. Kf4 {[%clk 0:00:12]}  Be5+ {[%clk 0:00:03]} 48. Ke3 {[%clk 0:00:12]}  Bxg3 {[%clk 0:00:04]} 49. f4 {[%clk 0:00:11]}  Kd5 {[%clk 0:00:02]} 50. Kd3 {[%clk 0:00:11]}  Bf2 {[%clk 0:00:02]} 51. Bf6 {[%clk 0:00:10]}  Bg3 {[%clk 0:00:02]} 52. Bg5 {[%clk 0:00:11]}  Kc5 {[%clk 0:00:02]} 53. Kc3 {[%clk 0:00:10]}  Kd5 {[%clk 0:00:02]} 54. Kd3 {[%clk 0:00:11]} 1/2-1/2


[Site "https://www.chess.com"]

[Event "Titled Tuesday Blitz December 27 Early 2022"]
[White "Legenia, Artem"]
[Black "Matinian, Nikita"]
[WhiteFideId "14136945"]
[BlackFideId "24129100"]
[WhiteElo "2092"]
[BlackElo "2407"]
[Result "1/2-1/2"]
[Round "03"]
[TimeControl "180+2"]
[Date "2022.12.27"]
[WhiteClock "0:00:11"]
[BlackClock "0:00:03"]

1. d4 {[%clk 0:02:59]}  Nf6 {[%clk 0:02:59]} 2. Nf3 {[%clk 0:02:58]}  e6 {[%clk 0:03:00]} 3. c3 {[%clk 0:02:55]}  b6 {[%clk 0:02:59]} 4. Bf4 {[%clk 0:02:55]}  Bb7 {[%clk 0:02:59]} 5. Nbd2 {[%clk 0:02:54]}  h6 {[%clk 0:02:57]} 6. h3 {[%clk 0:02:54]}  c5 {[%clk 0:02:56]} 7. e3 {[%clk 0:02:53]}  Be7 {[%clk 0:02:54]} 8. Bd3 {[%clk 0:02:53]}  O-O {[%clk 0:02:52]} 9. a4 {[%clk 0:02:53]}  d6 {[%clk 0:02:49]} 10. Qe2 {[%clk 0:02:53]}  Nbd7 {[%clk 0:02:48]} 11. O-O {[%clk 0:02:51]}  Qc7 {[%clk 0:02:47]} 12. Rfc1 {[%clk 0:02:47]}  e5 {[%clk 0:02:47]} 13. dxe5 {[%clk 0:02:47]}  Nxe5 {[%clk 0:02:44]} 14. Nxe5 {[%clk 0:02:44]}  dxe5 {[%clk 0:02:44]} 15. Bh2 {[%clk 0:02:45]}  Qc6 {[%clk 0:02:41]} 16. e4 {[%clk 0:02:42]}  Rfe8 {[%clk 0:02:33]} 17. Bxe5 {[%clk 0:02:39]}  Qe6 {[%clk 0:02:26]} 18. Bh2 {[%clk 0:02:35]}  Bf8 {[%clk 0:02:21]} 19. Re1 {[%clk 0:02:26]}  Rad8 {[%clk 0:02:10]} 20. Bb5 {[%clk 0:02:21]}  Re7 {[%clk 0:02:04]} 21. Rad1 {[%clk 0:02:08]}  Qc8 {[%clk 0:02:00]} 22. Bd3 {[%clk 0:01:35]}  Rde8 {[%clk 0:01:47]} 23. f3 {[%clk 0:01:33]}  Bc6 {[%clk 0:01:15]} 24. Bb5 {[%clk 0:01:29]}  h5 {[%clk 0:01:06]} 25. Kh1 {[%clk 0:01:26]}  Re6 {[%clk 0:00:45]} 26. Nf1 {[%clk 0:01:19]}  g6 {[%clk 0:00:35]} 27. Ne3 {[%clk 0:01:15]}  Bh6 {[%clk 0:00:33]} 28. Bxc6 {[%clk 0:01:08]}  Qxc6 {[%clk 0:00:32]} 29. Qb5 {[%clk 0:01:06]}  Qc8 {[%clk 0:00:29]} 30. Nd5 {[%clk 0:01:03]}  Nxd5 {[%clk 0:00:27]} 31. Rxd5 {[%clk 0:01:03]}  f5 {[%clk 0:00:26]} 32. e5 {[%clk 0:00:59]}  f4 {[%clk 0:00:15]} 33. Qc4 {[%clk 0:00:59]}  g5 {[%clk 0:00:14]} 34. Rd6 {[%clk 0:00:58]}  Bg7 {[%clk 0:00:13]} 35. h4 {[%clk 0:00:48]}  gxh4 {[%clk 0:00:10]} 36. Bxf4 {[%clk 0:00:45]}  Kh8 {[%clk 0:00:08]} 37. Qd5 {[%clk 0:00:40]}  Rxd6 {[%clk 0:00:07]} 38. Qxd6 {[%clk 0:00:39]}  Qf5 {[%clk 0:00:07]} 39. e6 {[%clk 0:00:35]}  h3 {[%clk 0:00:06]} 40. g3 {[%clk 0:00:29]}  Qc2 {[%clk 0:00:04]} 41. Qd2 {[%clk 0:00:19]}  Qg6 {[%clk 0:00:03]} 42. Kh2 {[%clk 0:00:17]}  Rxe6 {[%clk 0:00:02]} 43. Qd8+ {[%clk 0:00:16]}  Kh7 {[%clk 0:00:02]} 44. Rxe6 {[%clk 0:00:16]}  Qxe6 {[%clk 0:00:03]} 45. Qd3+ {[%clk 0:00:17]}  Kg8 {[%clk 0:00:03]} 46. Be3 {[%clk 0:00:16]}  Kf7 {[%clk 0:00:03]} 47. f4 {[%clk 0:00:16]}  Qg4 {[%clk 0:00:02]} 48. Qd5+ {[%clk 0:00:15]}  Kg6 {[%clk 0:00:03]} 49. Qe4+ {[%clk 0:00:13]}  Kf7 {[%clk 0:00:03]} 50. Qb7+ {[%clk 0:00:11]}  Kg6 {[%clk 0:00:03]} 51. Qe4+ {[%clk 0:00:11]}  Kf7 {[%clk 0:00:03]} 52. Qd5+ {[%clk 0:00:11]}  Kg6 {[%clk 0:00:03]} 53. Qe4+ {[%clk 0:00:11]} 1/2-1/2


[Site "https://www.chess.com"]

[Event "Titled Tuesday Blitz December 27 Early 2022"]
[White "Lehtosaari, Mauri"]
[Black "Kravtsiv, Martyn"]
[WhiteFideId "501999"]
[BlackFideId "14113147"]
[WhiteElo "2176"]
[BlackElo "2598"]
[Result "0-1"]
[Round "03"]
[TimeControl "180+2"]
[Date "2022.12.27"]
[WhiteClock "0:00:07"]
[BlackClock "0:00:22"]

1. d4 {[%clk 0:03:00]}  d5 {[%clk 0:02:56]} 2. Nf3 {[%clk 0:03:00]}  Nf6 {[%clk 0:02:56]} 3. Bg5 {[%clk 0:02:59]}  Ne4 {[%clk 0:02:55]} 4. Bf4 {[%clk 0:02:59]}  c5 {[%clk 0:02:53]} 5. e3 {[%clk 0:02:59]}  Nc6 {[%clk 0:02:53]} 6. c3 {[%clk 0:02:58]}  Qb6 {[%clk 0:02:53]} 7. Qb3 {[%clk 0:02:58]}  c4 {[%clk 0:02:52]} 8. Qxb6 {[%clk 0:02:57]}  axb6 {[%clk 0:02:53]} 9. Nfd2 {[%clk 0:02:58]}  Bf5 {[%clk 0:02:48]} 10. Be2 {[%clk 0:02:52]}  e6 {[%clk 0:02:46]} 11. Bf3 {[%clk 0:02:44]}  b5 {[%clk 0:02:28]} 12. Nxe4 {[%clk 0:02:33]}  dxe4 {[%clk 0:02:26]} 13. Be2 {[%clk 0:02:31]}  Ne7 {[%clk 0:02:09]} 14. Nd2 {[%clk 0:02:21]}  Nd5 {[%clk 0:02:09]} 15. Bg3 {[%clk 0:02:20]}  Be7 {[%clk 0:02:10]} 16. O-O {[%clk 0:02:15]}  h5 {[%clk 0:02:08]} 17. h3 {[%clk 0:02:02]}  h4 {[%clk 0:02:00]} 18. Bh2 {[%clk 0:02:01]}  O-O {[%clk 0:02:00]} 19. Rfc1 {[%clk 0:01:43]}  Bg5 {[%clk 0:01:52]} 20. Kf1 {[%clk 0:01:06]}  Rfc8 {[%clk 0:01:48]} 21. Bd6 {[%clk 0:01:00]}  Rc6 {[%clk 0:01:44]} 22. Bb4 {[%clk 0:00:53]}  Bf6 {[%clk 0:01:25]} 23. Ke1 {[%clk 0:00:52]}  e5 {[%clk 0:01:24]} 24. dxe5 {[%clk 0:00:27]}  Bxe5 {[%clk 0:01:25]} 25. a3 {[%clk 0:00:23]}  Rca6 {[%clk 0:01:09]} 26. Rab1 {[%clk 0:00:23]}  Bg6 {[%clk 0:01:02]} 27. Bg4 {[%clk 0:00:20]}  f5 {[%clk 0:01:00]} 28. Bd1 {[%clk 0:00:19]}  Bf7 {[%clk 0:00:59]} 29. Bc2 {[%clk 0:00:18]}  g5 {[%clk 0:00:47]} 30. Bc5 {[%clk 0:00:16]}  Rc6 {[%clk 0:00:42]} 31. Bd4 {[%clk 0:00:16]}  Bxd4 {[%clk 0:00:41]} 32. exd4 {[%clk 0:00:16]}  Nf4 {[%clk 0:00:40]} 33. Kf1 {[%clk 0:00:15]}  Nd3 {[%clk 0:00:38]} 34. Rd1 {[%clk 0:00:15]}  Bd5 {[%clk 0:00:36]} 35. Ke2 {[%clk 0:00:15]}  Re8 {[%clk 0:00:33]} 36. g3 {[%clk 0:00:14]}  hxg3 {[%clk 0:00:29]} 37. fxg3 {[%clk 0:00:15]}  f4 {[%clk 0:00:29]} 38. Nf1 {[%clk 0:00:13]}  e3 {[%clk 0:00:27]} 39. Bxd3 {[%clk 0:00:11]}  cxd3+ {[%clk 0:00:27]} 40. Kxd3 {[%clk 0:00:11]}  e2 {[%clk 0:00:21]} 41. Re1 {[%clk 0:00:10]}  exf1=Q+ {[%clk 0:00:21]} 42. Rxf1 {[%clk 0:00:09]}  Be4+ {[%clk 0:00:21]} 43. Kd2 {[%clk 0:00:08]}  Bxb1 {[%clk 0:00:22]} 44. Rxb1 {[%clk 0:00:07]}  fxg3 {[%clk 0:00:22]} 45. Rg1 {[%clk 0:00:07]}  Rf6 {[%clk 0:00:22]} 0-1


[Site "https://www.chess.com"]

[Event "Titled Tuesday Blitz December 27 Early 2022"]
[White "Makarian, Rudik"]
[Black "Liyanage, Ranindu Dilshan"]
[WhiteFideId "44105681"]
[BlackFideId "9915834"]
[WhiteElo "2545"]
[BlackElo "2342"]
[Result "1-0"]
[Round "03"]
[TimeControl "180+2"]
[Date "2022.12.27"]
[WhiteClock "0:00:13"]
[BlackClock "0:00:20"]

1. d3 {[%clk 0:03:00]}  g6 {[%clk 0:02:56]} 2. g3 {[%clk 0:03:00]}  Bg7 {[%clk 0:02:56]} 3. Bg2 {[%clk 0:03:00]}  d5 {[%clk 0:02:57]} 4. f4 {[%clk 0:03:01]}  c5 {[%clk 0:02:53]} 5. Nf3 {[%clk 0:03:01]}  Nc6 {[%clk 0:02:54]} 6. O-O {[%clk 0:03:02]}  Nf6 {[%clk 0:02:54]} 7. Nc3 {[%clk 0:03:02]}  d4 {[%clk 0:02:54]} 8. Na4 {[%clk 0:03:01]}  Nd7 {[%clk 0:02:45]} 9. c4 {[%clk 0:03:01]}  O-O {[%clk 0:02:45]} 10. a3 {[%clk 0:03:00]}  Qc7 {[%clk 0:02:43]} 11. Bd2 {[%clk 0:02:55]}  b6 {[%clk 0:02:38]} 12. b4 {[%clk 0:02:53]}  Bb7 {[%clk 0:02:38]} 13. Rb1 {[%clk 0:02:49]}  Rab8 {[%clk 0:02:35]} 14. b5 {[%clk 0:02:41]}  Nd8 {[%clk 0:02:34]} 15. Nb2 {[%clk 0:02:41]}  f6 {[%clk 0:02:28]} 16. Qe1 {[%clk 0:02:18]}  Nf7 {[%clk 0:02:21]} 17. Nd1 {[%clk 0:02:17]}  e5 {[%clk 0:02:18]} 18. Nf2 {[%clk 0:02:12]}  Rbe8 {[%clk 0:02:15]} 19. f5 {[%clk 0:01:47]}  gxf5 {[%clk 0:02:09]} 20. Nh4 {[%clk 0:01:46]}  Bxg2 {[%clk 0:02:03]} 21. Kxg2 {[%clk 0:01:46]}  e4 {[%clk 0:02:02]} 22. Bf4 {[%clk 0:01:46]}  Qb7 {[%clk 0:02:01]} 23. Kg1 {[%clk 0:01:42]}  Nfe5 {[%clk 0:01:56]} 24. Qd1 {[%clk 0:01:25]}  Ng6 {[%clk 0:01:43]} 25. Nxf5 {[%clk 0:01:20]}  Nxf4 {[%clk 0:01:43]} 26. gxf4 {[%clk 0:01:20]}  exd3 {[%clk 0:01:31]} 27. exd3 {[%clk 0:01:18]}  Qc7 {[%clk 0:00:53]} 28. Qg4 {[%clk 0:01:13]}  Nb8 {[%clk 0:00:51]} 29. Rbe1 {[%clk 0:01:08]}  Kh8 {[%clk 0:00:49]} 30. Ne4 {[%clk 0:01:03]}  Rg8 {[%clk 0:00:47]} 31. Neg3 {[%clk 0:01:01]}  Rxe1 {[%clk 0:00:34]} 32. Rxe1 {[%clk 0:01:02]}  Bh6 {[%clk 0:00:35]} 33. Qh5 {[%clk 0:00:26]}  Qxf4 {[%clk 0:00:32]} 34. Nxh6 {[%clk 0:00:19]}  Nd7 {[%clk 0:00:27]} 35. Nxg8 {[%clk 0:00:16]}  Ne5 {[%clk 0:00:26]} 36. Rxe5 {[%clk 0:00:14]}  fxe5 {[%clk 0:00:25]} 37. Nh6 {[%clk 0:00:12]}  Qc1+ {[%clk 0:00:20]} 38. Kg2 {[%clk 0:00:12]}  Qd2+ {[%clk 0:00:20]} 39. Kh3 {[%clk 0:00:12]}  Qxd3 {[%clk 0:00:21]} 40. Qe8+ {[%clk 0:00:12]}  Kg7 {[%clk 0:00:21]} 41. Nf5+ {[%clk 0:00:12]}  Kf6 {[%clk 0:00:20]} 42. Qe7+ {[%clk 0:00:13]}  Kg6 {[%clk 0:00:20]} 43. Qg7# {[%clk 0:00:13]} 1-0


[Site "https://www.chess.com"]

[Event "Titled Tuesday Blitz December 27 Early 2022"]
[White "Makhmudov, Shukhrat"]
[Black "Oro, Faustino"]
[WhiteFideId "14200775"]
[BlackFideId "20000197"]
[WhiteElo "2115"]
[BlackElo "2269"]
[Result "0-1"]
[Round "03"]
[TimeControl "180+2"]
[Date "2022.12.27"]
[WhiteClock "0:02:27"]
[BlackClock "0:02:10"]

1. e4 {[%clk 0:02:58]}  c5 {[%clk 0:02:59]} 2. Nf3 {[%clk 0:02:57]}  d6 {[%clk 0:02:59]} 3. d4 {[%clk 0:02:57]}  cxd4 {[%clk 0:03:00]} 4. Nxd4 {[%clk 0:02:58]}  Nf6 {[%clk 0:03:01]} 5. Nc3 {[%clk 0:02:59]}  a6 {[%clk 0:03:02]} 6. h3 {[%clk 0:02:59]}  e5 {[%clk 0:03:01]} 7. Nf3 {[%clk 0:02:59]}  Be7 {[%clk 0:03:01]} 8. g4 {[%clk 0:02:59]}  Be6 {[%clk 0:02:59]} 9. Ng5 {[%clk 0:02:59]}  O-O {[%clk 0:02:53]} 10. Nxe6 {[%clk 0:02:56]}  fxe6 {[%clk 0:02:53]} 11. Be3 {[%clk 0:02:55]}  Nc6 {[%clk 0:02:45]} 12. Qd2 {[%clk 0:02:55]}  b5 {[%clk 0:02:43]} 13. a3 {[%clk 0:02:53]}  Qc7 {[%clk 0:02:34]} 14. O-O-O {[%clk 0:02:50]}  Rab8 {[%clk 0:02:24]} 15. g5 {[%clk 0:02:40]}  Nh5 {[%clk 0:02:20]} 16. h4 {[%clk 0:02:39]}  b4 {[%clk 0:02:14]} 17. axb4 {[%clk 0:02:39]}  Nxb4 {[%clk 0:02:14]} 18. Bc4 {[%clk 0:02:34]}  Qxc4 {[%clk 0:02:14]} 19. Qe2 {[%clk 0:02:28]}  Na2+ {[%clk 0:02:11]} 20. Kb1 {[%clk 0:02:27]}  Nxc3+ {[%clk 0:02:10]} 0-1


[Site "https://www.chess.com"]

[Event "Titled Tuesday Blitz December 27 Early 2022"]
[White "Manon-og, Ramon Jr."]
[Black "Dias, Joao Batista"]
[WhiteFideId "5200776"]
[BlackFideId "2108240"]
[WhiteElo "1999"]
[BlackElo "1796"]
[Result "0-1"]
[Round "03"]
[TimeControl "180+2"]
[Date "2022.12.27"]
[WhiteClock "0:01:23"]
[BlackClock "0:02:10"]

1. e4 {[%clk 0:03:00]}  e5 {[%clk 0:02:49]} 2. f4 {[%clk 0:02:59]}  exf4 {[%clk 0:02:48]} 3. Nf3 {[%clk 0:03:00]}  d5 {[%clk 0:02:48]} 4. Nc3 {[%clk 0:02:57]}  dxe4 {[%clk 0:02:47]} 5. Nxe4 {[%clk 0:02:57]}  Nf6 {[%clk 0:02:47]} 6. Nc3 {[%clk 0:02:55]}  Bd6 {[%clk 0:02:45]} 7. d4 {[%clk 0:02:54]}  O-O {[%clk 0:02:45]} 8. Bc4 {[%clk 0:02:50]}  Bg4 {[%clk 0:02:45]} 9. O-O {[%clk 0:02:44]}  b6 {[%clk 0:02:45]} 10. h3 {[%clk 0:02:42]}  Bxf3 {[%clk 0:02:45]} 11. Rxf3 {[%clk 0:02:43]}  Nc6 {[%clk 0:02:45]} 12. d5 {[%clk 0:02:37]}  Ne5 {[%clk 0:02:44]} 13. Rxf4 {[%clk 0:02:33]}  Nxc4 {[%clk 0:02:43]} 14. Rxc4 {[%clk 0:02:32]}  Re8 {[%clk 0:02:35]} 15. Bg5 {[%clk 0:02:23]}  h6 {[%clk 0:02:28]} 16. Bxf6 {[%clk 0:02:15]}  Qxf6 {[%clk 0:02:27]} 17. Qd2 {[%clk 0:02:12]}  Qe5 {[%clk 0:02:26]} 18. Qf2 {[%clk 0:01:42]}  Qh2+ {[%clk 0:02:25]} 19. Kf1 {[%clk 0:01:37]}  Bc5 {[%clk 0:02:16]} 20. Qd2 {[%clk 0:01:23]}  Qg1# {[%clk 0:02:10]} 0-1


[Site "https://www.chess.com"]